[Event "Late-Titled-Tuesday-Blitz-December-26-2023"]
[Site "Chess.com"]
[Date "2023.12.26"]
[Round "7"]
[White "Camilla_Lee"]
[Black "lukazz029"]
[Result "1-0"]
[WhiteElo "2602"]
[BlackElo "2023"]
[TimeControl "180+1"]
[EndTime "15:18:29 PST"]
[Termination "Camilla_Lee won by resignation"]

1. e4 {[%clk 0:03:00.9]} 1... c5 {[%clk 0:02:59.8]} 2. Nf3 {[%clk 0:03:00.4]}
2... d6 {[%clk 0:02:51.6]} 3. d4 {[%clk 0:02:59.9]} 3... cxd4 {[%clk 0:02:52.5]}
4. Nxd4 {[%clk 0:02:59.9]} 4... Nf6 {[%clk 0:02:50.3]} 5. Nc3 {[%clk 0:02:59.8]}
5... a6 {[%clk 0:02:50.2]} 6. Bc4 {[%clk 0:02:59.5]} 6... e6 {[%clk 0:02:49.7]}
7. O-O {[%clk 0:02:59.2]} 7... Nxe4 {[%clk 0:02:47.4]} 8. Nxe4 {[%clk
0:02:55.5]} 8... d5 {[%clk 0:02:47.4]} 9. Bd3 {[%clk 0:02:55.3]} 9... dxe4
{[%clk 0:02:45.2]} 10. Bxe4 {[%clk 0:02:56.2]} 10... Qc7 {[%clk 0:02:38.3]} 11.
Be3 {[%clk 0:02:43.5]} 11... Bd6 {[%clk 0:02:32.9]} 12. g3 {[%clk 0:02:42.7]}
12... Nd7 {[%clk 0:02:26.4]} 13. Bg2 {[%clk 0:02:33.7]} 13... Nf6 {[%clk
0:02:24.8]} 14. Bg5 {[%clk 0:02:24.9]} 14... Bd7 {[%clk 0:02:18.3]} 15. c4
{[%clk 0:02:13.5]} 15... Rc8 {[%clk 0:01:58.1]} 16. Rc1 {[%clk 0:02:08.6]} 16...
b6 {[%clk 0:01:53.9]} 17. Re1 {[%clk 0:01:59.1]} 17... Be7 {[%clk 0:01:49.3]}
18. Bf4 {[%clk 0:01:44.8]} 18... Qa7 {[%clk 0:01:45.4]} 19. a3 {[%clk
0:01:10.1]} 19... O-O {[%clk 0:01:42.6]} 20. b4 {[%clk 0:01:09.7]} 20... Rfd8
{[%clk 0:01:40.2]} 21. Qe2 {[%clk 0:00:58.2]} 21... Be8 {[%clk 0:01:38.1]} 22.
Be3 {[%clk 0:00:54.9]} 22... Qc7 {[%clk 0:01:31.9]} 23. Bf4 {[%clk 0:00:47]}
23... Qa7 {[%clk 0:01:31.3]} 24. Be3 {[%clk 0:00:31.6]} 24... Qc7 {[%clk
0:01:30.7]} 25. Red1 {[%clk 0:00:31.9]} 25... Ba4 {[%clk 0:01:21.7]} 26. Rd2
{[%clk 0:00:31.2]} 26... h6 {[%clk 0:01:12.3]} 27. h4 {[%clk 0:00:31.2]} 27...
Bf8 {[%clk 0:01:07.3]} 28. g4 {[%clk 0:00:29.2]} 28... e5 {[%clk 0:00:58.4]} 29.
Nf5 {[%clk 0:00:28.1]} 29... Rxd2 {[%clk 0:00:58]} 30. Qxd2 {[%clk 0:00:28.1]}
30... Nxg4 {[%clk 0:00:55.9]} 31. Qe2 {[%clk 0:00:20.3]} 31... Nxe3 {[%clk
0:00:53.6]} 32. Qxe3 {[%clk 0:00:20]} 32... Bc6 {[%clk 0:00:52]} 33. Qg3 {[%clk
0:00:17.7]} 33... Kh7 {[%clk 0:00:46.3]} 34. Bh3 {[%clk 0:00:16.8]} 34... Bd7
{[%clk 0:00:39.4]} 35. h5 {[%clk 0:00:15.3]} 35... Be6 {[%clk 0:00:38.2]} 36.
Qf3 {[%clk 0:00:12.5]} 36... Qc6 {[%clk 0:00:35.8]} 37. Qd3 {[%clk 0:00:09.5]}
37... Qd7 {[%clk 0:00:28.9]} 38. Nd6+ {[%clk 0:00:04.9]} 38... Kh8 {[%clk
0:00:26.6]} 39. Bxe6 {[%clk 0:00:05.2]} 39... fxe6 {[%clk 0:00:23.9]} 40. Rd1
{[%clk 0:00:05.6]} 40... Rd8 {[%clk 0:00:23.7]} 41. c5 {[%clk 0:00:06.1]} 41...
Bxd6 {[%clk 0:00:21.2]} 42. cxd6 {[%clk 0:00:05.5]} 42... Qc6 {[%clk 0:00:16.4]}
43. d7 {[%clk 0:00:04.8]} 43... b5 {[%clk 0:00:16.2]} 44. Qg6 {[%clk 0:00:04.1]}
44... Kg8 {[%clk 0:00:11.2]} 45. Qd3 {[%clk 0:00:02.5]} 45... Kh8 {[%clk
0:00:10.9]} 46. Qd2 {[%clk 0:00:03.1]} 46... Kg8 {[%clk 0:00:10.7]} 47. Kh2
{[%clk 0:00:03.7]} 47... Qc7 {[%clk 0:00:10.5]} 48. Kg3 {[%clk 0:00:03.8]} 48...
e4+ {[%clk 0:00:10.8]} 49. Kg2 {[%clk 0:00:04.4]} 49... Qe5 {[%clk 0:00:10.6]}
50. Qe3 {[%clk 0:00:04.3]} 50... Qg5+ {[%clk 0:00:10.5]} 51. Qxg5 {[%clk
0:00:04.2]} 51... hxg5 {[%clk 0:00:11.4]} 52. Kg3 {[%clk 0:00:05]} 52... Kf7
{[%clk 0:00:11.7]} 53. Kg4 {[%clk 0:00:05.5]} 53... Ke7 {[%clk 0:00:12]} 54.
Kxg5 {[%clk 0:00:06.1]} 54... Rxd7 {[%clk 0:00:12.9]} 55. Rxd7+ {[%clk
0:00:06.4]} 55... Kxd7 {[%clk 0:00:13.1]} 56. Kg6 {[%clk 0:00:07.1]} 56... Kd6
{[%clk 0:00:13.5]} 57. Kxg7 {[%clk 0:00:07.6]} 57... Ke5 {[%clk 0:00:12.2]} 58.
h6 {[%clk 0:00:08.1]} 58... Kf4 {[%clk 0:00:12.7]} 59. h7 {[%clk 0:00:08.4]}
59... Kf3 {[%clk 0:00:13.6]} 60. h8=Q {[%clk 0:00:09]} 60... Kxf2 {[%clk
0:00:14.5]} 61. Qh2+ {[%clk 0:00:09.5]} 61... Kf3 {[%clk 0:00:14.6]} 62. Qe5
{[%clk 0:00:09.2]} 62... e3 {[%clk 0:00:13.5]} 63. Qf6+ {[%clk 0:00:09.5]} 63...
Ke2 {[%clk 0:00:13.6]} 64. Qxe6 {[%clk 0:00:09.9]} 64... Kd2 {[%clk 0:00:13.4]}
65. Qd5+ {[%clk 0:00:10.4]} 65... Ke1 {[%clk 0:00:13.4]} 66. Qh1+ {[%clk
0:00:09.8]} 66... Kd2 {[%clk 0:00:13.5]} 67. Qh6 {[%clk 0:00:09.4]} 67... Kd3
{[%clk 0:00:12.9]} 68. Qd6+ {[%clk 0:00:09.3]} 68... Ke2 {[%clk 0:00:13]} 69.
Qxa6 {[%clk 0:00:08.1]} 69... Kf2 {[%clk 0:00:11.1]} 70. Qxb5 {[%clk 0:00:08.5]}
70... e2 {[%clk 0:00:11.2]} 71. Qxe2+ {[%clk 0:00:08.6]} 1-0

[Event "Late-Titled-Tuesday-Blitz-December-26-2023"]
[Site "Chess.com"]
[Date "2023.12.26"]
[Round "7"]
[White "CheckThis4"]
[Black "AGW2016"]
[Result "1/2-1/2"]
[WhiteElo "2725"]
[BlackElo "2581"]
[TimeControl "180+1"]
[EndTime "15:18:32 PST"]
[Termination "Game drawn by repetition"]

1. e4 {[%clk 0:03:00.9]} 1... c5 {[%clk 0:02:59.3]} 2. Nf3 {[%clk 0:03:00.9]}
2... d6 {[%clk 0:02:59.9]} 3. d4 {[%clk 0:02:58.1]} 3... cxd4 {[%clk 0:03:00.8]}
4. Nxd4 {[%clk 0:02:58.2]} 4... Nf6 {[%clk 0:03:01.6]} 5. Nc3 {[%clk 0:02:58.3]}
5... a6 {[%clk 0:03:02.4]} 6. Be3 {[%clk 0:02:51.3]} 6... e5 {[%clk 0:02:55.8]}
7. Nb3 {[%clk 0:02:50.1]} 7... Be7 {[%clk 0:02:55.3]} 8. Be2 {[%clk 0:02:45.8]}
8... Be6 {[%clk 0:02:54.8]} 9. g4 {[%clk 0:02:43.6]} 9... d5 {[%clk 0:02:46.8]}
10. exd5 {[%clk 0:02:31]} 10... Nxd5 {[%clk 0:02:46.3]} 11. Nxd5 {[%clk
0:02:30.3]} 11... Qxd5 {[%clk 0:02:47.2]} 12. Bf3 {[%clk 0:02:24.6]} 12... Qxd1+
{[%clk 0:02:41.2]} 13. Rxd1 {[%clk 0:02:25.5]} 13... Nc6 {[%clk 0:02:41.4]} 14.
Bxc6+ {[%clk 0:02:11.6]} 14... bxc6 {[%clk 0:02:40.6]} 15. h3 {[%clk 0:02:09.8]}
15... f6 {[%clk 0:02:35.3]} 16. Nc5 {[%clk 0:02:08.5]} 16... Bxc5 {[%clk
0:02:31.6]} 17. Bxc5 {[%clk 0:02:09.4]} 17... h5 {[%clk 0:02:27]} 18. Rd6 {[%clk
0:01:53.1]} 18... Bd5 {[%clk 0:02:24.7]} 19. Rg1 {[%clk 0:01:52.3]} 19... Kf7
{[%clk 0:02:24.2]} 20. b3 {[%clk 0:01:51]} 20... Rad8 {[%clk 0:02:22.1]} 21.
Rxd8 {[%clk 0:01:35]} 21... Rxd8 {[%clk 0:02:21.2]} 22. gxh5 {[%clk 0:01:35.6]}
22... Rh8 {[%clk 0:02:19.7]} 23. c4 {[%clk 0:01:30.7]} 23... Be6 {[%clk
0:02:19]} 24. Kd2 {[%clk 0:01:19.9]} 24... Rxh5 {[%clk 0:02:14.3]} 25. Kc3
{[%clk 0:01:19.8]} 25... a5 {[%clk 0:02:07]} 26. Rg3 {[%clk 0:01:15.7]} 26... a4
{[%clk 0:01:50.9]} 27. Kb4 {[%clk 0:01:06.4]} 27... axb3 {[%clk 0:01:50.2]} 28.
Rxb3 {[%clk 0:01:01.9]} 28... Rxh3 {[%clk 0:01:38.6]} 29. Rxh3 {[%clk
0:01:00.7]} 29... Bxh3 {[%clk 0:01:39.5]} 30. a4 {[%clk 0:00:57.3]} 30... Ke6
{[%clk 0:01:17.6]} 31. Bf8 {[%clk 0:00:54.3]} 31... g6 {[%clk 0:01:10.4]} 32.
Kc5 {[%clk 0:00:52.7]} 32... Kd7 {[%clk 0:01:05.7]} 33. Bg7 {[%clk 0:00:50.3]}
33... Kc7 {[%clk 0:00:50.2]} 34. Bxf6 {[%clk 0:00:49.5]} 34... e4 {[%clk
0:00:50.6]} 35. a5 {[%clk 0:00:42.9]} 35... Kb7 {[%clk 0:00:50.8]} 36. Kd4
{[%clk 0:00:39.7]} 36... Be6 {[%clk 0:00:49.7]} 37. Bd8 {[%clk 0:00:34.5]} 37...
Bf7 {[%clk 0:00:47.5]} 38. c5 {[%clk 0:00:30.6]} 38... Bd5 {[%clk 0:00:46.2]}
39. Ke5 {[%clk 0:00:30.9]} 39... Ka6 {[%clk 0:00:41.7]} 40. Kf6 {[%clk
0:00:30.5]} 40... Kb7 {[%clk 0:00:38.3]} 41. Kxg6 {[%clk 0:00:30.4]} 41... Ka6
{[%clk 0:00:39.1]} 42. Kf6 {[%clk 0:00:30.8]} 42... Kb7 {[%clk 0:00:39.8]} 43.
Ke5 {[%clk 0:00:30.6]} 43... Ka6 {[%clk 0:00:40.5]} 44. Bb6 {[%clk 0:00:30.4]}
44... Kb7 {[%clk 0:00:40.9]} 45. Kd6 {[%clk 0:00:30.7]} 45... Bc4 {[%clk
0:00:36.3]} 46. Ke5 {[%clk 0:00:29.3]} 46... Bd5 {[%clk 0:00:28.2]} 47. Kd4
{[%clk 0:00:29.6]} 47... Ka6 {[%clk 0:00:26.5]} 48. Ke3 {[%clk 0:00:27.5]} 48...
Kb7 {[%clk 0:00:26.1]} 49. Bd8 {[%clk 0:00:27.2]} 49... Ka6 {[%clk 0:00:26.5]}
50. Kd4 {[%clk 0:00:26.5]} 50... Kb7 {[%clk 0:00:26.9]} 51. Bg5 {[%clk
0:00:26.6]} 51... Ka6 {[%clk 0:00:27.2]} 52. Bd2 {[%clk 0:00:26.5]} 52... Kb7
{[%clk 0:00:27.9]} 53. Ke5 {[%clk 0:00:26.2]} 53... Ka6 {[%clk 0:00:26.8]} 54.
Kd6 {[%clk 0:00:26.5]} 54... Kb7 {[%clk 0:00:27.3]} 55. Bc3 {[%clk 0:00:26.3]}
55... Bc4 {[%clk 0:00:25.8]} 56. Be1 {[%clk 0:00:24.5]} 56... Bd5 {[%clk
0:00:26.3]} 57. Bd2 {[%clk 0:00:23.2]} 57... Bc4 {[%clk 0:00:26.8]} 58. Ke5
{[%clk 0:00:21.7]} 58... Bd5 {[%clk 0:00:27.3]} 59. Kf4 {[%clk 0:00:22.2]} 59...
Ka6 {[%clk 0:00:27.7]} 60. Ke3 {[%clk 0:00:22.1]} 60... Kb7 {[%clk 0:00:28.3]}
61. Kd4 {[%clk 0:00:22.4]} 61... Ka6 {[%clk 0:00:28.5]} 62. Bc3 {[%clk
0:00:20.5]} 62... Kb7 {[%clk 0:00:28.6]} 63. Ke5 {[%clk 0:00:19.6]} 63... Ka6
{[%clk 0:00:27.9]} 64. Kd6 {[%clk 0:00:19.3]} 64... Kb7 {[%clk 0:00:28.6]} 65.
Bb4 {[%clk 0:00:17.9]} 65... Bc4 {[%clk 0:00:28.6]} 66. Be1 {[%clk 0:00:17.7]}
66... Bd5 {[%clk 0:00:29.1]} 67. Ke7 {[%clk 0:00:17.2]} 67... Bc4 {[%clk
0:00:28.1]} 68. Kd8 {[%clk 0:00:17]} 68... Bd5 {[%clk 0:00:27.8]} 69. Ke8 {[%clk
0:00:17.6]} 69... Bc4 {[%clk 0:00:28.1]} 70. Ke7 {[%clk 0:00:18]} 70... Ka6
{[%clk 0:00:24.7]} 71. Kd6 {[%clk 0:00:17.1]} 71... Kb7 {[%clk 0:00:24.8]} 72.
Ke5 {[%clk 0:00:17.5]} 72... Bd5 {[%clk 0:00:25.2]} 73. Kf4 {[%clk 0:00:17.8]}
73... Ka6 {[%clk 0:00:25.3]} 74. Ke3 {[%clk 0:00:17.9]} 74... Kb7 {[%clk
0:00:25.4]} 75. Kd4 {[%clk 0:00:18.2]} 75... Ka6 {[%clk 0:00:25.3]} 76. Bd2
{[%clk 0:00:18.7]} 76... Kb7 {[%clk 0:00:25.4]} 77. Ke5 {[%clk 0:00:19]} 77...
Ka6 {[%clk 0:00:24.4]} 78. Kf5 {[%clk 0:00:18.2]} 78... Ka7 {[%clk 0:00:21.8]}
79. Kf6 {[%clk 0:00:17.8]} 79... Ka6 {[%clk 0:00:21.7]} 80. Kg5 {[%clk
0:00:17.9]} 80... Ka7 {[%clk 0:00:22]} 81. Kf4 {[%clk 0:00:18.4]} 81... Ka6
{[%clk 0:00:22.7]} 82. Kf5 {[%clk 0:00:18.9]} 82... Ka7 {[%clk 0:00:23.2]} 83.
Bf4 {[%clk 0:00:18.7]} 83... Ka6 {[%clk 0:00:23.4]} 84. Bc7 {[%clk 0:00:18.8]}
84... Kb7 {[%clk 0:00:24]} 85. Bb6 {[%clk 0:00:19.1]} 85... Ka6 {[%clk
0:00:24.8]} 86. Kf4 {[%clk 0:00:19.3]} 86... Kb7 {[%clk 0:00:25.2]} 87. Ke3
{[%clk 0:00:19.6]} 87... Ka6 {[%clk 0:00:25.9]} 88. f4 {[%clk 0:00:19.7]} 88...
exf3 {[%clk 0:00:25.5]} 89. Kf2 {[%clk 0:00:19.8]} 89... Kb7 {[%clk 0:00:26.2]}
90. Ke3 {[%clk 0:00:19.8]} 90... Ka6 {[%clk 0:00:27.1]} 91. Kf2 {[%clk
0:00:20.2]} 91... Kb7 {[%clk 0:00:27.8]} 92. Ke3 {[%clk 0:00:20.6]} 92... Ka6
{[%clk 0:00:28.7]} 1/2-1/2

[Event "Late-Titled-Tuesday-Blitz-December-26-2023"]
[Site "Chess.com"]
[Date "2023.12.26"]
[Round "7"]
[White "EsmeraldasAnderson03"]
[Black "staz_staz"]
[Result "1/2-1/2"]
[WhiteElo "2392"]
[BlackElo "2258"]
[TimeControl "180+1"]
[EndTime "15:18:38 PST"]
[Termination "Game drawn by repetition"]

1. b3 {[%clk 0:02:54]} 1... e5 {[%clk 0:02:57.4]} 2. Bb2 {[%clk 0:02:53.7]} 2...
Nc6 {[%clk 0:02:55.7]} 3. e3 {[%clk 0:02:50]} 3... d6 {[%clk 0:02:54.5]} 4. Bb5
{[%clk 0:02:49.3]} 4... Ne7 {[%clk 0:02:50.4]} 5. f4 {[%clk 0:02:48.3]} 5... Bd7
{[%clk 0:02:21.3]} 6. fxe5 {[%clk 0:02:42.8]} 6... Nxe5 {[%clk 0:02:18.5]} 7.
Bxd7+ {[%clk 0:02:43.7]} 7... Qxd7 {[%clk 0:02:19.3]} 8. Nf3 {[%clk 0:02:41.7]}
8... N7c6 {[%clk 0:01:51]} 9. O-O {[%clk 0:02:40.9]} 9... O-O-O {[%clk
0:01:47.7]} 10. Nc3 {[%clk 0:02:36.8]} 10... h5 {[%clk 0:01:45.3]} 11. Qe1
{[%clk 0:01:34.9]} 11... f6 {[%clk 0:01:41.2]} 12. a4 {[%clk 0:01:32.3]} 12...
g5 {[%clk 0:01:39.4]} 13. Nd5 {[%clk 0:01:25.7]} 13... Bg7 {[%clk 0:01:34.3]}
14. Nd4 {[%clk 0:01:22]} 14... Nxd4 {[%clk 0:01:19.1]} 15. exd4 {[%clk
0:01:21.3]} 15... Ng4 {[%clk 0:01:12.4]} 16. h3 {[%clk 0:01:21.3]} 16... Rde8
{[%clk 0:01:01.3]} 17. Qd1 {[%clk 0:01:19.6]} 17... Qe6 {[%clk 0:00:43.3]} 18.
Qf3 {[%clk 0:01:15.9]} 18... Nh6 {[%clk 0:00:37]} 19. Rae1 {[%clk 0:01:04.5]}
19... Qf7 {[%clk 0:00:29.5]} 20. Ne3 {[%clk 0:00:59.9]} 20... f5 {[%clk
0:00:22.9]} 21. Nc4 {[%clk 0:00:17.1]} 21... f4 {[%clk 0:00:21.7]} 22. Na5
{[%clk 0:00:14.9]} 22... d5 {[%clk 0:00:21.5]} 23. b4 {[%clk 0:00:14.5]} 23...
g4 {[%clk 0:00:20.9]} 24. Rxe8+ {[%clk 0:00:14.2]} 24... Rxe8 {[%clk 0:00:19.8]}
25. Qxf4 {[%clk 0:00:15.1]} 25... Qg6 {[%clk 0:00:17.5]} 26. d3 {[%clk 0:00:10]}
26... Kb8 {[%clk 0:00:17.4]} 27. hxg4 {[%clk 0:00:09.8]} 27... Nxg4 {[%clk
0:00:16.8]} 28. Qf7 {[%clk 0:00:08.1]} 28... Qxf7 {[%clk 0:00:11.7]} 29. Rxf7
{[%clk 0:00:09]} 29... Bh6 {[%clk 0:00:12.3]} 30. Kf1 {[%clk 0:00:06.6]} 30...
Ne3+ {[%clk 0:00:11.9]} 31. Ke2 {[%clk 0:00:07.1]} 31... Nxc2+ {[%clk
0:00:12.8]} 32. Kd1 {[%clk 0:00:06.6]} 32... Nxb4 {[%clk 0:00:13]} 33. Bc3
{[%clk 0:00:05.7]} 33... Nxd3 {[%clk 0:00:13.2]} 34. Nb3 {[%clk 0:00:05.7]}
34... Nf4 {[%clk 0:00:12.2]} 35. Rf6 {[%clk 0:00:04.1]} 35... Bg5 {[%clk
0:00:11.9]} 36. Rf5 {[%clk 0:00:04.7]} 36... Rg8 {[%clk 0:00:10.8]} 37. Bd2
{[%clk 0:00:04.7]} 37... Nxg2 {[%clk 0:00:09.5]} 38. Bxg5 {[%clk 0:00:04.6]}
38... h4 {[%clk 0:00:09]} 39. Ke2 {[%clk 0:00:02.3]} 39... h3 {[%clk 0:00:09.3]}
40. Kf2 {[%clk 0:00:03]} 40... b6 {[%clk 0:00:09]} 41. Kg3 {[%clk 0:00:02.8]}
41... Ne3 {[%clk 0:00:08.5]} 42. Re5 {[%clk 0:00:02.6]} 42... Nf1+ {[%clk
0:00:08.6]} 43. Kxh3 {[%clk 0:00:03]} 43... Rh8+ {[%clk 0:00:06.7]} 44. Kg4
{[%clk 0:00:02.5]} 44... Nh2+ {[%clk 0:00:06.3]} 45. Kg3 {[%clk 0:00:02.7]}
45... Kb7 {[%clk 0:00:06.6]} 46. Bf4 {[%clk 0:00:02.6]} 46... Nf1+ {[%clk
0:00:06.7]} 47. Kf2 {[%clk 0:00:03.1]} 47... Nh2 {[%clk 0:00:07]} 48. Bxh2
{[%clk 0:00:02.8]} 48... Rxh2+ {[%clk 0:00:07.9]} 49. Kf3 {[%clk 0:00:03.2]}
49... Rh3+ {[%clk 0:00:08.4]} 50. Kf4 {[%clk 0:00:03.2]} 50... Rxb3 {[%clk
0:00:09.3]} 51. Rxd5 {[%clk 0:00:03.9]} 51... Rb4 {[%clk 0:00:09.7]} 52. a5
{[%clk 0:00:04.4]} 52... Rc4 {[%clk 0:00:09.2]} 53. axb6 {[%clk 0:00:05.3]}
53... axb6 {[%clk 0:00:09.8]} 54. Ke4 {[%clk 0:00:06]} 54... Ka6 {[%clk
0:00:09.7]} 55. Kd3 {[%clk 0:00:06.3]} 55... Ra4 {[%clk 0:00:09.5]} 56. Rd8
{[%clk 0:00:06.8]} 56... c6 {[%clk 0:00:09.6]} 57. Ra8+ {[%clk 0:00:05.9]} 57...
Kb5 {[%clk 0:00:10]} 58. Rc8 {[%clk 0:00:05.9]} 58... Ra3+ {[%clk 0:00:10.3]}
59. Ke4 {[%clk 0:00:06.2]} 59... Ra4 {[%clk 0:00:10.8]} 60. Kd3 {[%clk
0:00:05.5]} 60... Rb4 {[%clk 0:00:11.3]} 61. Rg8 {[%clk 0:00:05.4]} 61... Rb3+
{[%clk 0:00:11.4]} 62. Ke4 {[%clk 0:00:04.6]} 62... Rb1 {[%clk 0:00:11.6]} 63.
Rg2 {[%clk 0:00:02.6]} 63... Re1+ {[%clk 0:00:11.3]} 64. Kd3 {[%clk 0:00:01.7]}
64... Rd1+ {[%clk 0:00:11.6]} 65. Kc3 {[%clk 0:00:01.4]} 65... Rc1+ {[%clk
0:00:11.7]} 66. Kd3 {[%clk 0:00:02.3]} 66... Rb1 {[%clk 0:00:11.7]} 67. Rc2
{[%clk 0:00:02.6]} 67... c5 {[%clk 0:00:11.5]} 68. dxc5 {[%clk 0:00:02.5]} 68...
bxc5 {[%clk 0:00:12.4]} 69. Rh2 {[%clk 0:00:02.8]} 69... Rb3+ {[%clk 0:00:12.9]}
70. Kc2 {[%clk 0:00:02.2]} 70... Ra3 {[%clk 0:00:13.1]} 71. Rh4 {[%clk
0:00:02.6]} 71... c4 {[%clk 0:00:13]} 72. Rg4 {[%clk 0:00:03.2]} 72... Kb4
{[%clk 0:00:13.4]} 73. Rg8 {[%clk 0:00:04]} 73... Rh3 {[%clk 0:00:13.5]} 74.
Rb8+ {[%clk 0:00:03.4]} 74... Kc5 {[%clk 0:00:13.9]} 75. Rc8+ {[%clk 0:00:04]}
75... Kb5 {[%clk 0:00:14.3]} 76. Rb8+ {[%clk 0:00:04.2]} 76... Kc5 {[%clk
0:00:14.6]} 77. Rc8+ {[%clk 0:00:04.9]} 77... Kb4 {[%clk 0:00:15]} 78. Rb8+
{[%clk 0:00:05.3]} 78... Kc5 {[%clk 0:00:15.3]} 1/2-1/2

[Event "Late-Titled-Tuesday-Blitz-December-26-2023"]
[Site "Chess.com"]
[Date "2023.12.26"]
[Round "7"]
[White "robertoalejandro10"]
[Black "IMRosen"]
[Result "1-0"]
[WhiteElo "2579"]
[BlackElo "2686"]
[TimeControl "180+1"]
[EndTime "15:18:48 PST"]
[Termination "robertoalejandro10 won on time"]

1. Nf3 {[%clk 0:02:58.5]} 1... d5 {[%clk 0:02:59.3]} 2. b3 {[%clk 0:02:57.5]}
2... Nf6 {[%clk 0:02:58.8]} 3. Bb2 {[%clk 0:02:57.2]} 3... Bg4 {[%clk
0:02:59.2]} 4. g3 {[%clk 0:02:55]} 4... Nbd7 {[%clk 0:02:56.6]} 5. Bg2 {[%clk
0:02:54.3]} 5... e6 {[%clk 0:02:54.9]} 6. O-O {[%clk 0:02:45.5]} 6... Bd6 {[%clk
0:02:54.8]} 7. c4 {[%clk 0:02:39.6]} 7... c6 {[%clk 0:02:54.6]} 8. d4 {[%clk
0:02:39]} 8... Qb8 {[%clk 0:02:51.8]} 9. Nc3 {[%clk 0:02:25.2]} 9... O-O {[%clk
0:02:50.3]} 10. Re1 {[%clk 0:02:22.4]} 10... dxc4 {[%clk 0:02:29.5]} 11. bxc4
{[%clk 0:02:20.3]} 11... e5 {[%clk 0:02:30.1]} 12. d5 {[%clk 0:01:54.1]} 12...
cxd5 {[%clk 0:02:03.5]} 13. Nxd5 {[%clk 0:01:53.5]} 13... Nxd5 {[%clk 0:02:02]}
14. cxd5 {[%clk 0:01:51.3]} 14... f5 {[%clk 0:01:51.5]} 15. Ng5 {[%clk
0:01:25.8]} 15... Qe8 {[%clk 0:01:41]} 16. Ne6 {[%clk 0:01:21.5]} 16... Rf6
{[%clk 0:01:40.8]} 17. Qb3 {[%clk 0:01:14.7]} 17... Rb8 {[%clk 0:01:31.6]} 18.
Qa4 {[%clk 0:00:54.6]} 18... a6 {[%clk 0:01:08.8]} 19. e3 {[%clk 0:00:47.4]}
19... Bh5 {[%clk 0:01:04.9]} 20. Rac1 {[%clk 0:00:35.6]} 20... Bf7 {[%clk
0:01:00.6]} 21. Nc7 {[%clk 0:00:22.9]} 21... Qd8 {[%clk 0:01:00.5]} 22. Ne6
{[%clk 0:00:22.6]} 22... Qe7 {[%clk 0:00:56.1]} 23. Ng5 {[%clk 0:00:13.5]} 23...
Be8 {[%clk 0:00:52.4]} 24. Ne6 {[%clk 0:00:12]} 24... Nc5 {[%clk 0:00:46.5]} 25.
Qc2 {[%clk 0:00:12.2]} 25... Nxe6 {[%clk 0:00:44.5]} 26. dxe6 {[%clk 0:00:13.1]}
26... Qxe6 {[%clk 0:00:44.3]} 27. Red1 {[%clk 0:00:12]} 27... Kh8 {[%clk
0:00:44]} 28. Rd2 {[%clk 0:00:06.2]} 28... Qe7 {[%clk 0:00:39.2]} 29. Rcd1
{[%clk 0:00:06.6]} 29... Rd8 {[%clk 0:00:39.8]} 30. Qb3 {[%clk 0:00:05.2]} 30...
Bf7 {[%clk 0:00:34.6]} 31. Qxb7 {[%clk 0:00:04.6]} 31... Rb8 {[%clk 0:00:13.5]}
32. Qxe7 {[%clk 0:00:03.8]} 32... Bxe7 {[%clk 0:00:14.4]} 33. Bxe5 {[%clk
0:00:03.8]} 33... Rfb6 {[%clk 0:00:04.7]} 34. Bxb8 {[%clk 0:00:03.9]} 34... Rxb8
{[%clk 0:00:05.6]} 35. Rd7 {[%clk 0:00:04.1]} 35... Re8 {[%clk 0:00:06.3]} 36.
Ra7 {[%clk 0:00:04.3]} 36... Bxa2 {[%clk 0:00:04.8]} 37. Rxa6 {[%clk 0:00:03.8]}
37... Bb3 {[%clk 0:00:05.2]} 38. Rb1 {[%clk 0:00:03.6]} 38... Bc4 {[%clk
0:00:04.7]} 39. Ra8 {[%clk 0:00:03.8]} 39... Rxa8 {[%clk 0:00:02.8]} 40. Bxa8
{[%clk 0:00:04.7]} 40... h6 {[%clk 0:00:02.5]} 41. Bf3 {[%clk 0:00:04.8]} 41...
Bf6 {[%clk 0:00:02.5]} 42. Rb6 {[%clk 0:00:04]} 42... Bd3 {[%clk 0:00:02.2]} 43.
Rb8+ {[%clk 0:00:03.1]} 43... Kh7 {[%clk 0:00:02.4]} 44. Rc8 {[%clk 0:00:03.9]}
44... Kg6 {[%clk 0:00:02.2]} 45. Rc6 {[%clk 0:00:02.9]} 45... Bb5 {[%clk
0:00:02.6]} 46. Rd6 {[%clk 0:00:03.2]} 46... Bc4 {[%clk 0:00:02.9]} 47. h4
{[%clk 0:00:03.9]} 47... Kf7 {[%clk 0:00:02.9]} 48. Rc6 {[%clk 0:00:04.8]} 48...
Bb5 {[%clk 0:00:03.1]} 49. Rc7+ {[%clk 0:00:05.5]} 49... Kf8 {[%clk 0:00:03.1]}
50. Kg2 {[%clk 0:00:06.2]} 50... Be8 {[%clk 0:00:02.7]} 51. Rc8 {[%clk
0:00:06.6]} 51... Ke7 {[%clk 0:00:02.7]} 52. Rc7+ {[%clk 0:00:07.2]} 52... Kf8
{[%clk 0:00:01.7]} 53. Ra7 {[%clk 0:00:08.1]} 53... Bf7 {[%clk 0:00:01.9]} 54.
g4 {[%clk 0:00:08.3]} 54... fxg4 {[%clk 0:00:02.2]} 55. Bxg4 {[%clk 0:00:09.2]}
55... Bxh4 {[%clk 0:00:02.2]} 56. f4 {[%clk 0:00:08.9]} 56... Bf6 {[%clk
0:00:02.6]} 57. e4 {[%clk 0:00:08.6]} 57... h5 {[%clk 0:00:03.2]} 58. Bf3 {[%clk
0:00:08.5]} 58... Bd4 {[%clk 0:00:03.8]} 59. Ra8+ {[%clk 0:00:08.6]} 59... Ke7
{[%clk 0:00:04.4]} 60. e5 {[%clk 0:00:09.2]} 60... g5 {[%clk 0:00:04.9]} 61.
fxg5 {[%clk 0:00:05.2]} 61... Bxe5 {[%clk 0:00:05.4]} 62. Ra7+ {[%clk 0:00:05]}
62... Kf8 {[%clk 0:00:05]} 63. Be4 {[%clk 0:00:04.9]} 63... Kg8 {[%clk
0:00:04.5]} 64. g6 {[%clk 0:00:05.1]} 64... Bc4 {[%clk 0:00:04.3]} 65. Ra4
{[%clk 0:00:04.1]} 65... Bb3 {[%clk 0:00:04.3]} 66. Rb4 {[%clk 0:00:04.3]} 66...
Ba2 {[%clk 0:00:05]} 67. Rb5 {[%clk 0:00:04.5]} 67... Bf6 {[%clk 0:00:05.5]} 68.
Kf3 {[%clk 0:00:04.3]} 68... h4 {[%clk 0:00:05.6]} 69. Rh5 {[%clk 0:00:03.5]}
69... Be6 {[%clk 0:00:05.2]} 70. Kf4 {[%clk 0:00:03.6]} 70... h3 {[%clk
0:00:05.4]} 71. Bf5 {[%clk 0:00:03.7]} 71... Bc4 {[%clk 0:00:02]} 72. Rxh3
{[%clk 0:00:04.1]} 72... Be7 {[%clk 0:00:02.2]} 73. Rh7 {[%clk 0:00:04.1]} 73...
Bd6+ {[%clk 0:00:02.3]} 74. Kg4 {[%clk 0:00:04.5]} 74... Be2+ {[%clk 0:00:02.1]}
75. Kg5 {[%clk 0:00:04.3]} 75... Bb4 {[%clk 0:00:02.2]} 76. Rd7 {[%clk
0:00:04.5]} 76... Ba3 {[%clk 0:00:01.5]} 77. Be6+ {[%clk 0:00:04.5]} 77... Kf8
{[%clk 0:00:01.3]} 78. g7+ {[%clk 0:00:05.1]} 1-0